bitfinex-derivatives/quotes_BTCF0:USTF0_20241217
["timestamp","ask_amount","ask_price","bid_price","bid_amount"]
[1734467311623,0.04703,106320.0,106310.0,0.47589748]
[1734467312533,0.04703,106320.0,106310.0,0.11509748]
[1734467312930,0.40783,106320.0,106310.0,0.11509748]
[1734467313234,0.40783,106320.0,106310.0,0.04714331]
[1734467315033,0.04703,106320.0,106310.0,0.04714331]
[1734467315241,0.04703,106320.0,106310.0,0.11509748]
[1734467316028,0.04703,106320.0,106310.0,0.14629748]
[1734467316730,0.04703,106320.0,106310.0,0.03130931]
[1734467316731,0.47578417,106320.0,106310.0,0.03130931]
[1734467317336,0.50838417,106320.0,106310.0,0.00010931]
[1734467320943,0.50838417,106320.0,106310.0,0.04714331]
[1734467322251,0.40783,106320.0,106310.0,0.11509748]
[1734467322457,0.40783,106320.0,106310.0,0.07834331]
[1734467325360,0.47578417,106320.0,106310.0,0.00010931]
[1734467327061,0.47578417,106320.0,106310.0,0.04714331]
[1734467327256,0.40783,106320.0,106310.0,0.04714331]
[1734467336770,0.40783,106320.0,106310.0,0.05714331]
[1734467336976,0.47578417,106320.0,106310.0,0.01010931]
[1734467337171,0.47578417,106320.0,106310.0,0.01892326]
[1734467337765,0.50848417,106320.0,106310.0,0.01892326]
[1734467338677,0.50848417,106320.0,106310.0,0.01010931]
[1734467339078,0.44053,106320.0,106310.0,0.05714331]
[1734467340977,0.40783,106320.0,106310.0,0.05714331]
[1734467342168,0.40783,106320.0,106310.0,0.06595726]
[1734467342575,0.40783,106320.0,106310.0,0.05714331]
[1734467345377,0.3608,106320.0,106310.0,0.05714331]
[1734467345681,0.47578417,106320.0,106310.0,0.05714331]
[1734467345881,0.50708417,106320.0,106310.0,0.05714331]
[1734467346388,0.50708417,106320.0,106310.0,0.057034]
[1734467348881,0.43913,106320.0,106310.0,0.057034]
[1734467349379,0.43913,106320.0,106290.0,1.10324405]
[1734467349579,0.3608,106310.0,106300.0,0.047034]
[1734467349785,0.3608,106310.0,106300.0,0.057034]
[1734467349980,0.43913,106320.0,106310.0,0.047034]
[1734467352879,0.07833,106320.0,106310.0,0.047034]
[1734467353082,0.43913,106320.0,106310.0,0.047034]
[1734467359383,0.43913,106320.0,106310.0,0.06684368]
[1734467359785,0.43913,106320.0,106300.0,0.057034]
[1734467359786,0.50708417,106320.0,106300.0,0.01]
[1734467359987,0.407834,106310.0,106300.0,0.057036]
[1734467364293,0.407834,106310.0,106300.0,0.08204643]
[1734467369896,0.3608,106310.0,106300.0,0.1500006]
[1734467370092,0.3608,106320.0,106310.0,0.047034]
[1734467370291,0.3608,106320.0,106310.0,0.21970349]
[1734467371298,0.407825,106330.0,106310.0,0.58050349]
[1734467371594,0.43943209,106340.0,106320.0,0.60076834]
[1734467371788,0.03161109,106340.0,106330.0,0.14697917]
[1734467371994,0.00141109,106340.0,106330.0,0.14697917]
[1734467372302,0.40923209,106340.0,106330.0,0.079025]
[1734467374301,0.04843209,106340.0,106330.0,0.079025]
[1734467375697,0.40923209,106340.0,106330.0,0.079025]
[1734467376505,0.40923209,106340.0,106330.0,0.10375304]
[1734467377103,0.04843209,106340.0,106330.0,0.10375304]
[1734467380109,0.00141109,106340.0,106330.0,0.17170721]
[1734467380411,0.00141109,106340.0,106330.0,0.23660721]
[1734467380608,0.47974328,106350.0,106340.0,0.047021]
[1734467381810,0.43272228,106350.0,106340.0,0.047021]
[1734467384401,0.50067645,106350.0,106330.0,0.05672804]
[1734467384606,0.50817517,106340.0,106330.0,0.047025]
[1734467384814,0.472821,106340.0,106330.0,0.047025]
[1734467387210,0.047025,106330.0,106320.0,0.057027]
[1734467387411,0.407825,106330.0,106320.0,0.08129305]
[1734467388213,0.3608,106330.0,106320.0,0.14924722]
[1734467388413,0.472823,106340.0,106330.0,0.047025]
[1734467388608,0.472823,106340.0,106330.0,0.11497917]
[1734467388808,0.472823,106340.0,106330.0,0.047025]
[1734467389620,0.472823,106340.0,106330.0,0.01]
[1734467390527,0.440223,106340.0,106330.0,0.01]
[1734467390711,0.440223,106340.0,106330.0,0.057025]
[1734467392220,0.3932,106340.0,106330.0,0.057025]
[1734467392423,0.3932,106340.0,106330.0,0.089725]
[1734467395127,0.440221,106340.0,106330.0,0.089725]
[1734467400220,0.0324,106340.0,106330.0,0.11203188]
[1734467400422,0.438915,106360.0,106350.0,0.047016]
[1734467400637,0.0323,106360.0,106350.0,0.057016]
[1734467400836,0.07930051,106380.0,106350.0,0.57603122]
[1734467401037,0.11160051,106380.0,106370.0,0.11496217]
[1734467401333,0.11160051,106380.0,106370.0,0.13726905]
[1734467401532,0.06459451,106380.0,106370.0,0.13726905]
[1734467401739,0.03379451,106380.0,106370.0,0.13726905]
[1734467402444,0.03379451,106380.0,106370.0,0.11496217]
[1734467403829,0.39318398,106380.0,106370.0,0.11496217]
[1734467404234,0.03238398,106380.0,106370.0,0.11496217]
[1734467406246,0.03238398,106380.0,106370.0,0.14606217]
[1734467408443,0.03238398,106380.0,106370.0,0.17751799]
[1734467408647,8.398e-05,106380.0,106370.0,0.53831799]
[1734467408942,0.51170853,106400.0,106370.0,0.60627216]
[1734467408943,0.210095,106400.0,106370.0,0.60627216]
[1734467409149,0.131,106400.0,106390.0,0.47575317]
[1734467409440,0.1,106400.0,106390.0,0.47575317]
[1734467409649,0.1,106400.0,106390.0,0.50815317]
[1734467410150,0.1,106400.0,106390.0,0.5082312]
[1734467410338,0.1,106400.0,106390.0,0.5387312]
[1734467410533,0.1,106400.0,106390.0,0.8387312]
[1734467411642,0.1,106400.0,106390.0,0.5387312]
[1734467414132,0.42205248,106440.0,106430.0,0.046981]
[1734467414133,0.449979,106440.0,106430.0,0.046981]
[1734467414337,0.481879,106440.0,106430.0,0.11493517]
[1734467414534,0.0741,106440.0,106430.0,0.11493517]
[1734467414751,0.0419,106440.0,106430.0,0.47573517]
[1734467415137,0.0419,106440.0,106430.0,0.50733517]
[1734467415743,0.01,106440.0,106430.0,0.50745518]
[1734467416841,0.01,106440.0,106430.0,0.14665518]
[1734467417942,0.01,106440.0,106430.0,0.50745518]
[1734467419040,0.01,106440.0,106430.0,0.57540935]
[1734467419240,0.01,106440.0,106430.0,0.50745518]
[1734467420360,0.01,106440.0,106430.0,0.14665518]
[1734467421640,0.01,106440.0,106430.0,0.17697136]
[1734467427151,0.00046298,106460.0,106450.0,0.046972]
[1734467427450,0.00046298,106460.0,106450.0,0.11492617]
[1734467432357,0.00046298,106460.0,106450.0,0.15399907]
[1734467432647,0.40823098,106460.0,106450.0,0.0860449]
[1734467436459,0.43843098,106460.0,106450.0,0.046972]
[1734467436764,0.52215431,106460.0,106450.0,0.046972]
[1734467438356,0.63378542,106460.0,106450.0,0.046972]
[1734467439055,0.19581742,106460.0,106450.0,0.11492617]
[1734467439357,0.55661742,106460.0,106450.0,0.11492617]
[1734467439549,0.44462631,106460.0,106450.0,0.11492617]
[1734467440354,0.55625742,106460.0,106450.0,0.11492617]
[1734467440659,0.60322542,106460.0,106450.0,0.11492617]
[1734467441348,0.51950209,106460.0,106450.0,0.11492617]
[1734467441547,0.51950209,106460.0,106450.0,0.046972]
[1734467441752,0.58030987,106460.0,106450.0,0.046972]
[1734467443052,0.61170987,106460.0,106450.0,0.046972]
[1734467443251,0.77915654,106460.0,106450.0,0.046972]
[1734467444353,0.30814562,106460.0,106450.0,0.11492617]
[1734467444554,0.14069895,106460.0,106450.0,0.14762617]
[1734467444857,0.25316649,106460.0,106450.0,0.14762617]
[1734467445061,0.61396649,106460.0,106450.0,0.14762617]
[1734467446261,0.54846695,106460.0,106450.0,0.046972]
[1734467446458,0.57876695,106460.0,106450.0,0.046972]
[1734467446865,0.77941362,106460.0,106450.0,0.06927888]
[1734467447164,0.77941362,106460.0,106450.0,0.046972]
[1734467447351,0.50149895,106460.0,106450.0,0.12372994]
[1734467447557,0.2531663,106460.0,106450.0,0.11492617]
[1734467447753,0.11257033,106460.0,106450.0,0.14692617]
[1734467448449,0.19691517,106460.0,106450.0,0.14692617]
[1734467449253,0.11257033,106460.0,106450.0,0.14692617]
[1734467449454,0.19691227,106460.0,106450.0,0.14692617]
[1734467451461,0.08444492,106460.0,106450.0,0.14692617]
[1734467452063,0.19691227,106460.0,106450.0,0.14692617]
[1734467452566,0.08444492,106460.0,106450.0,0.14692617]
[1734467454655,0.00010298,106460.0,106450.0,0.14692617]
[1734467455059,0.08444492,106460.0,106450.0,0.14692617]
[1734467455666,0.00010298,106460.0,106450.0,0.14692617]
[1734467456453,0.00010298,106460.0,106450.0,0.17803682]
[1734467461262,0.00010298,106460.0,106450.0,0.27339482]
[1734467462055,0.47582515,106460.0,106450.0,0.12646865]
[1734467462263,0.47582515,106460.0,106450.0,0.03111065]
[1734467462264,0.55369315,106460.0,106450.0,0.03111065]
[1734467463771,0.55369315,106460.0,106440.0,0.21203793]
[1734467463970,0.438272,106450.0,106440.0,0.11667993]
[1734467464760,0.438272,106450.0,106440.0,0.08556928]
[1734467469872,0.438272,106450.0,106440.0,0.07808665]
[1734467470066,0.468472,106450.0,106440.0,0.17344465]
[1734467470677,0.468472,106450.0,106440.0,0.07808665]
[1734467471176,0.53642617,106450.0,106440.0,0.03111065]
[1734467471971,0.53642617,106450.0,106430.0,0.21958683]
[1734467472170,0.407777,106440.0,106430.0,0.21956144]
[1734467472568,0.407777,106440.0,106430.0,0.12420344]
[1734467473181,0.407777,106440.0,106430.0,0.11539967]
[1734467473782,0.439477,106440.0,106430.0,0.09311818]
[1734467475579,0.50743117,106440.0,106430.0,0.10311818]
[1734467475784,0.50743117,106440.0,106430.0,0.13420344]
[1734467476583,0.439477,106440.0,106430.0,0.13420344]
[1734467477280,0.438274,106450.0,106440.0,0.046977]
[1734467477481,0.438274,106450.0,106440.0,0.14601643]
[1734467477683,0.438274,106450.0,106440.0,0.17861643]
[1734467477883,0.438274,106450.0,106440.0,0.11066226]
[1734467478075,0.438274,106450.0,106440.0,0.20650359]
[1734467479182,0.438274,106450.0,106440.0,0.11066226]
[1734467480783,0.3913,106450.0,106440.0,0.11066226]
[1734467481175,0.0305,106450.0,106440.0,0.11066226]
[1734467481374,0.3913,106450.0,106440.0,0.079577]
[1734467481575,0.0305,106450.0,106440.0,0.079577]
[1734467481876,0.3913,106450.0,106440.0,0.079577]
[1734467482385,0.3608,106450.0,106440.0,0.079577]
[1734467483087,0.43897298,106460.0,106450.0,0.046972]
[1734467484880,0.50692715,106460.0,106450.0,0.046972]
[1734467486282,0.43897298,106460.0,106450.0,0.046972]
[1734467486684,0.43897298,106460.0,106440.0,0.046977]
[1734467486887,0.3608,106450.0,106440.0,0.093954]
[1734467487883,0.3608,106450.0,106440.0,0.0940086]
[1734467488777,0.407772,106450.0,106440.0,0.0940086]
[1734467489584,0.407772,106450.0,106440.0,0.0470316]
[1734467489779,0.47572617,106450.0,106440.0,0.12698119]
[1734467489982,0.53932617,106450.0,106440.0,0.12698119]
[1734467490174,0.53932617,106450.0,106440.0,0.03113986]
[1734467490378,0.53932617,106450.0,106440.0,5.46e-05]
[1734467490583,0.90728034,106450.0,106430.0,0.01]
[1734467490778,0.50713117,106440.0,106430.0,0.01]
[1734467490979,0.57508534,106440.0,106420.0,0.02228149]
[1734467491188,0.046994,106410.0,106400.0,0.046994]
[1734467491384,0.768594,106410.0,106400.0,0.01]
[1734467491686,0.86854817,106410.0,106400.0,0.01]
[1734467493390,0.047003,106390.0,106380.0,0.047003]
[1734467493587,0.768603,106390.0,106380.0,0.01]
[1734467494184,0.800403,106390.0,106380.0,0.01]
[1734467494380,0.800403,106390.0,106380.0,0.057003]
[1734467496787,0.86835717,106390.0,106380.0,0.01]
[1734467497382,0.90035717,106390.0,106380.0,0.01]
[1734467501699,0.047008,106370.0,106360.0,0.04701]
[1734467501995,0.47576217,106370.0,106360.0,0.01]
[1734467502292,0.83656217,106370.0,106360.0,0.01]
[1734467502492,0.768608,106370.0,106360.0,0.01]
[1734467502809,0.768608,106370.0,106360.0,0.057012]
[1734467504500,0.768608,106370.0,106360.0,0.09718483]
[1734467505000,0.768608,106370.0,106360.0,0.05017283]
[1734467505596,0.83656217,106370.0,106360.0,0.05017283]
[1734467505791,0.768608,106370.0,106360.0,0.09718483]
[1734467507897,0.768608,106370.0,106360.0,0.05017283]
[1734467508089,0.83656217,106370.0,106360.0,0.01]
[1734467511196,0.768608,106370.0,106360.0,0.057012]
[1734467515089,0.39271633,106390.0,106370.0,0.047008]
[1734467515297,0.00011633,106390.0,106380.0,0.12495717]
[1734467515597,0.00011633,106390.0,106380.0,0.54945717]
[1734467515801,0.00011633,106390.0,106380.0,0.91741134]
[1734467516307,0.40779,106410.0,106400.0,0.046994]
[1734467516800,0.47574417,106410.0,106400.0,0.046994]
[1734467517020,0.40779,106410.0,106400.0,0.046994]
[1734467517307,0.40785676,106410.0,106400.0,0.04709946]
[1734467517890,0.45485176,106410.0,106400.0,0.046994]
[1734467518098,0.45485176,106410.0,106400.0,0.056994]
[1734467518099,0.40785676,106410.0,106400.0,0.056994]
[1734467521207,0.36086676,106410.0,106400.0,0.12494817]
[1734467521606,0.40785676,106410.0,106400.0,0.15704817]
[1734467522013,0.40785676,106410.0,106400.0,0.02518154]
[1734467522310,0.40785676,106410.0,106400.0,0.07217554]
[1734467522512,0.36086676,106410.0,106400.0,0.07217554]
[1734467524209,0.47581093,106410.0,106400.0,0.01]
[1734467524420,0.47581093,106410.0,106380.0,0.047002]
[1734467524421,0.5907591,106410.0,106380.0,0.047002]
[1734467524611,0.40785676,106410.0,106400.0,0.01]
[1734467524801,0.76865676,106410.0,106400.0,0.01]
[1734467526503,0.046994,106400.0,106390.0,0.01]
[1734467526807,0.407794,106400.0,106390.0,0.01]
[1734467527005,0.47574817,106400.0,106390.0,0.01]
[1734467527605,0.50654817,106400.0,106390.0,0.01]
[1734467529197,0.438594,106400.0,106390.0,0.01]
[1734467529405,0.077794,106400.0,106390.0,0.12495317]
[1734467529598,0.438594,106400.0,106390.0,0.12495317]
[1734467529810,0.046994,106400.0,106390.0,0.12495317]
[1734467530003,0.046994,106400.0,106390.0,0.15715317]
[1734467530401,0.046994,106400.0,106390.0,0.089199]
[1734467532701,0.407794,106400.0,106390.0,0.089199]
[1734467533514,0.046994,106400.0,106390.0,0.089199]
[1734467534712,0.046994,106400.0,106390.0,0.120899]
[1734467535311,0.40785876,106410.0,106400.0,0.046994]
[1734467536117,0.47581293,106410.0,106400.0,0.046994]
[1734467536321,0.47581293,106410.0,106390.0,0.0739]
[1734467536322,0.046994,106400.0,106390.0,0.056996]
[1734467536510,0.407794,106400.0,106390.0,0.056996]
[1734467538614,0.046994,106400.0,106390.0,0.056996]
[1734467538812,0.407794,106400.0,106390.0,0.056996]
[1734467544531,0.407794,106400.0,106390.0,0.56101676]
[1734467545219,0.046994,106400.0,106390.0,0.62897093]
[1734467545416,0.046994,106400.0,106390.0,0.13375825]
[1734467547426,0.046994,106400.0,106390.0,0.69141892]
[1734467548833,0.046994,106400.0,106390.0,1.12893246]
[1734467550223,0.407794,106400.0,106390.0,0.57127179]
[1734467550529,6.676e-05,106410.0,106400.0,0.046994]
[1734467550727,0.407784,106430.0,106400.0,1.49049986]
[1734467550928,0.14688885,106440.0,106430.0,0.046981]
[1734467551132,0.0333,106440.0,106430.0,0.11493517]
[1734467551323,0.046974,106450.0,106440.0,0.046977]
[1734467551519,0.046974,106450.0,106440.0,0.11493117]
[1734467551723,0.046974,106450.0,106440.0,0.1150088]
[1734467551925,0.407774,106450.0,106440.0,0.04705463]
[1734467555934,0.407774,106450.0,106440.0,0.0933149]
[1734467558730,0.046974,106450.0,106440.0,0.0933149]
[1734467559332,0.407774,106450.0,106440.0,0.0933149]
[1734467578459,0.407774,106450.0,106440.0,0.16126907]
[1734467579051,0.03341495,106460.0,106450.0,0.046972]
[1734467579356,0.47166937,106480.0,106470.0,0.046963]
[1734467579547,0.50326937,106480.0,106470.0,0.11491717]
[1734467579749,0.50326937,106480.0,106470.0,0.046963]
[1734467580054,0.50326937,106480.0,106460.0,0.046966]
[1734467580055,0.97898354,106480.0,106460.0,0.046966]
[1734467580253,0.407763,106470.0,106460.0,0.046966]
[1734467581950,0.046968,106460.0,106450.0,0.046971]
[1734467582252,0.04233212,106450.0,106440.0,0.0933119]
[1734467582458,0.46783212,106450.0,106440.0,0.0933119]
[1734467583259,0.46783212,106450.0,106440.0,0.0463379]
[1734467583454,0.53578629,106450.0,106440.0,7.763e-05]
[1734467585464,0.046981,106430.0,106420.0,0.046983]
[1734467585755,0.768581,106430.0,106420.0,0.046983]
[1734467585960,0.800581,106430.0,106420.0,0.046983]
[1734467586557,0.800581,106430.0,106420.0,0.04706166]
[1734467587063,0.800581,106430.0,106420.0,0.08580079]
[1734467588663,0.800581,106430.0,106420.0,0.09580079]
[1734467590657,0.86853517,106430.0,106420.0,0.01007866]
[1734467592059,0.800581,106430.0,106420.0,0.05706466]
[1734467593363,0.831781,106430.0,106420.0,0.05706466]
[1734467593962,0.831781,106430.0,106420.0,0.01007866]
[1734467594270,0.862581,106430.0,106420.0,0.01007866]
[1734467597760,0.93053517,106430.0,106420.0,0.01007866]
[1734467601170,0.9695599,106430.0,106420.0,0.01007866]
[1734467602974,0.04699,106410.0,106400.0,0.03913127]
[1734467603271,0.76859,106410.0,106400.0,0.056994]
[1734467603470,0.40779,106410.0,106400.0,0.056994]
[1734467605375,0.44029,106410.0,106400.0,0.056994]
[1734467605874,0.50824417,106410.0,106400.0,0.01]
[1734467606164,0.57281893,106410.0,106400.0,0.01]
[1734467609368,0.50486476,106410.0,106400.0,0.056994]
[1734467609564,0.40786476,106410.0,106400.0,0.12494817]
[1734467609971,0.40786476,106410.0,106400.0,0.15514817]
[1734467610579,0.40786476,106410.0,106400.0,0.16395625]
[1734467610780,0.40786476,106410.0,106400.0,0.15514817]
[1734467611679,0.40786476,106410.0,106400.0,0.087194]
[1734467612669,0.40786476,106410.0,106400.0,0.12084089]
[1734467614071,0.40786476,106410.0,106390.0,0.51722381]
[1734467614380,0.40786476,106410.0,106400.0,0.056994]
[1734467614773,0.40786476,106410.0,106400.0,0.12494817]
[1734467614972,7.476e-05,106410.0,106400.0,0.48574817]
[1734467615181,0.407787,106420.0,106400.0,0.51683656]
[1734467615375,0.046987,106420.0,106410.0,0.11494417]
[1734467615583,0.046987,106420.0,106410.0,0.17863256]
[1734467615965,0.079482,106430.0,106420.0,0.046986]
[1734467616166,0.046978,106440.0,106430.0,0.046981]
[1734467616367,0.046978,106440.0,106430.0,0.14602356]
[1734467617075,0.407778,106440.0,106430.0,0.11493517]
[1734467617274,0.046978,106440.0,106430.0,0.11493517]
[1734467617781,0.407778,106440.0,106430.0,0.11493517]
[1734467617981,0.407778,106440.0,106430.0,0.046981]
[1734467618171,0.046978,106440.0,106430.0,0.046981]
[1734467618371,0.407778,106440.0,106430.0,0.046981]
[1734467618774,0.407778,106440.0,106430.0,0.07806939]
[1734467618972,0.046978,106440.0,106430.0,0.07806939]
[1734467619371,0.407778,106440.0,106430.0,0.07806939]
[1734467621082,0.407778,106440.0,106430.0,0.046981]
[1734467621468,0.407778,106440.0,106430.0,0.0801567]
[1734467621869,0.407778,106440.0,106430.0,0.14811087]
[1734467622073,0.046978,106440.0,106430.0,0.14811087]
[1734467622668,0.407778,106440.0,106430.0,0.14811087]
[1734467622876,0.407778,106440.0,106430.0,0.17919926]
[1734467623077,0.046978,106440.0,106430.0,0.17919926]
[1734467623581,0.046978,106440.0,106430.0,0.21129926]
[1734467623971,0.45660935,106450.0,106430.0,0.21129926]
[1734467624172,0.43888335,106450.0,106440.0,0.11493117]
[1734467624380,0.39190935,106450.0,106440.0,0.14601956]
[1734467625182,0.39190935,106450.0,106440.0,0.12373925]
[1734467625785,0.39190935,106450.0,106440.0,0.11493117]
[1734467626885,0.43888135,106450.0,106440.0,0.11493117]
[1734467627075,0.39190935,106450.0,106440.0,0.11493117]
[1734467627476,0.36090935,106450.0,106440.0,0.11493117]
[1734467628079,0.00010935,106450.0,106440.0,0.11493117]
[1734467628889,0.36090935,106450.0,106440.0,0.11493117]
[1734467629492,0.00010935,106450.0,106440.0,0.11493117]
[1734467630189,0.40788135,106450.0,106440.0,0.11493117]
[1734467630586,0.43808135,106450.0,106440.0,0.11493117]
[1734467631485,0.07728135,106450.0,106440.0,0.11493117]
[1734467631680,0.43808135,106450.0,106440.0,0.11493117]
[1734467633585,0.39110935,106450.0,106440.0,0.11493117]
[1734467634692,0.03030935,106450.0,106440.0,0.11493117]
[1734467635496,0.39110935,106450.0,106440.0,0.11493117]
[1734467636095,0.03030935,106450.0,106440.0,0.11493117]
[1734467636396,0.03030935,106450.0,106440.0,0.13363428]
[1734467636691,0.39110935,106450.0,106440.0,0.13363428]
[1734467638990,0.43808135,106450.0,106440.0,0.13363428]
[1734467641195,0.43808135,106450.0,106440.0,0.56238845]
[1734467641196,0.03030935,106450.0,106440.0,0.56238845]
[1734467641398,0.109566,106470.0,106460.0,0.046968]
[1734467641601,0.109566,106470.0,106460.0,0.11492217]
[1734467641602,0.470366,106470.0,106460.0,0.11492217]
[1734467642500,0.470366,106470.0,106460.0,0.046968]
[1734467644594,0.502966,106470.0,106460.0,0.046968]
[1734467646906,0.502966,106470.0,106460.0,0.11492217]
[1734467647200,0.0636,106470.0,106460.0,0.11492217]
[1734467647401,0.0326,106470.0,106460.0,0.18706363]
[1734467647901,0.0326,106470.0,106460.0,0.54786363]
[1734467648597,0.0326,106470.0,106460.0,0.52558332]
[1734467649502,0.0326,106470.0,106460.0,0.18706363]
[1734467650009,0.3934,106470.0,106460.0,0.18706363]
[1734467650206,0.40788356,106480.0,106460.0,0.61593688]
[1734467650401,0.36092156,106480.0,106470.0,0.18287134]
[1734467650609,0.36092156,106480.0,106470.0,0.19167942]
[1734467651102,0.40788056,106480.0,106470.0,0.12372525]
[1734467651521,0.40788056,106480.0,106470.0,0.19167942]
[1734467651702,0.40788056,106480.0,106470.0,0.12372525]
[1734467654711,0.40788056,106480.0,106470.0,0.11491717]
[1734467655094,0.00012156,106480.0,106470.0,0.18287134]
[1734467656403,0.00012156,106480.0,106470.0,0.54367134]
[1734467656602,0.00012156,106480.0,106470.0,0.58417942]
[1734467656807,0.00012156,106480.0,106470.0,0.61497942]
[1734467660406,0.04708056,106480.0,106470.0,0.046963]
[1734467660609,0.40788056,106480.0,106470.0,0.05577108]
[1734467660909,0.43978056,106480.0,106470.0,0.12372525]
[1734467661212,0.00012156,106480.0,106470.0,0.19167942]
[1734467661399,0.00012156,106480.0,106470.0,0.18287134]
[1734467662902,0.00012156,106480.0,106470.0,0.54367134]
[1734467663213,0.00012156,106480.0,106470.0,0.57467134]
[1734467663404,0.00012156,106480.0,106470.0,0.21387134]
[1734467663597,0.36092156,106480.0,106470.0,0.18287134]
[1734467666605,0.00012156,106480.0,106470.0,0.18287134]
[1734467668817,0.36092156,106480.0,106470.0,0.18287134]
[1734467669522,0.00012156,106480.0,106470.0,0.18287134]
[1734467669817,0.36092156,106480.0,106470.0,0.18287134]
[1734467671401,0.00012156,106480.0,106470.0,0.18287134]
[1734467673617,0.00012156,106480.0,106470.0,0.19167942]
[1734467674405,0.00012156,106480.0,106470.0,0.28745848]
[1734467674918,0.4237,106490.0,106470.0,0.28745848]
[1734467675106,0.4237,106490.0,106480.0,0.11491317]
[1734467675310,0.4237,106490.0,106480.0,0.12372125]
[1734467677119,0.4237,106490.0,106480.0,0.21950031]
[1734467677315,0.4237,106490.0,106480.0,0.13527088]
[1734467678209,0.4237,106490.0,106480.0,0.06795417]
[1734467678517,0.4237,106490.0,106480.0,0.11491317]
[1734467680726,0.0629,106490.0,106480.0,0.11491317]
[1734467681113,0.4237,106490.0,106480.0,0.11491317]
[1734467681419,0.0629,106490.0,106480.0,0.11491317]
[1734467682036,0.0629,106490.0,106480.0,0.13579844]
[1734467682226,0.0315,106490.0,106480.0,0.18021816]
[1734467682415,0.0315,106490.0,106480.0,0.54101816]
[1734467682619,0.1319,106500.0,106480.0,0.54101816]
[1734467682916,0.02820314,106510.0,106500.0,0.04695]
[1734467683220,0.56015353,106530.0,106520.0,0.046941]
[1734467683423,0.56015353,106530.0,106520.0,0.13578044]
[1734467684014,0.56015353,106530.0,106520.0,0.11467859]
[1734467685216,0.00011579,106540.0,106520.0,0.11467859]
[1734467685415,0.09392,106590.0,106520.0,0.11467859]
[1734467685720,0.23889723,106670.0,106660.0,0.40768]
[1734467686029,0.28068669,106680.0,106660.0,1.67919312]
[1734467686030,0.22450421,106680.0,106660.0,1.67919312]
[1734467686219,0.0974,106700.0,106690.0,0.046867]
[1734467686420,0.77119105,106700.0,106690.0,3.31045491]
[1734467686617,2.30362657,106700.0,106690.0,2.17424133]
[1734467686919,0.77167106,106700.0,106690.0,0.47464677]
[1734467687124,2.30362657,106700.0,106690.0,0.47464677]
[1734467687327,1.62995195,106700.0,106690.0,0.406997]
[1734467687632,1.46132348,106700.0,106690.0,3.61579532]
[1734467688013,1.46132348,106700.0,106690.0,3.64926284]
[1734467688215,1.46132348,106700.0,106690.0,4.6350368]
[1734467688417,1.13912498,106700.0,106690.0,4.6350368]
[1734467688932,1.08912498,106700.0,106690.0,4.6350368]
[1734467689112,1.08912498,106700.0,106690.0,4.48772251]
[1734467689113,1.47858984,106700.0,106690.0,4.48772251]
[1734467689313,1.46172638,106700.0,106690.0,4.48772251]
[1734467689536,1.03448822,106700.0,106690.0,4.53458951]
[1734467689724,1.03444822,106700.0,106690.0,4.53458951]
[1734467689926,1.03444822,106700.0,106690.0,1.40878217]
[1734467690125,1.03444822,106700.0,106660.0,0.10111729]
[1734467690126,0.229533,106680.0,106660.0,0.10111729]
[1734467690319,0.590333,106680.0,106670.0,0.046874]
[1734467690723,1.16571522,106680.0,106670.0,0.046874]
[1734467691025,0.3608,106700.0,106690.0,0.046867]
[1734467691229,1.75604822,106700.0,106670.0,0.17623368]
[1734467691525,0.229533,106680.0,106670.0,0.53703368]
[1734467691727,0.621233,106690.0,106680.0,0.046871]
[1734467691923,0.02582324,106690.0,106680.0,0.046871]
[1734467692132,0.83073846,106690.0,106680.0,0.046871]
[1734467692321,0.83073846,106690.0,106680.0,0.0469406]
[1734467692527,1.19153846,106690.0,106680.0,0.0469406]
[1734467692826,0.38662324,106690.0,106670.0,0.17623368]
[1734467693017,0.38662324,106680.0,106670.0,0.22310868]
[1734467693221,0.38662324,106680.0,106660.0,0.10999116]
[1734467693419,0.3608,106670.0,106660.0,0.15687116]
[1734467693619,0.43350024,106670.0,106650.0,0.046882]
[1734467693828,0.3608,106660.0,106650.0,0.046882]
[1734467694125,0.02582324,106660.0,106650.0,0.04697197]
[1734467694425,0.3608,106680.0,106660.0,0.04688]
[1734467694625,0.02582324,106670.0,106660.0,0.04980867]
[1734467694822,0.38662324,106670.0,106660.0,0.04980867]
[1734467695219,0.38662324,106670.0,106660.0,0.11291983]
[1734467695422,0.43349824,106670.0,106660.0,0.00292867]
[1734467695624,0.43349824,106670.0,106650.0,0.04697397]
[1734467695927,0.38662324,106660.0,106650.0,0.04697397]
[1734467696625,0.02582324,106660.0,106650.0,0.51779431]
[1734467696823,0.3608,106680.0,106660.0,0.04688]
[1734467697019,0.38662324,106670.0,106660.0,0.15690034]
[1734467697824,0.02582324,106670.0,106660.0,0.15690034]
[1734467698217,0.38662324,106670.0,106660.0,0.15690034]
[1734467698730,0.02582324,106670.0,106660.0,0.15690034]
[1734467698934,0.38662324,106670.0,106660.0,0.15690034]
[1734467700123,0.02582324,106670.0,106660.0,0.15690034]
[1734467700324,0.02582324,106670.0,106660.0,0.5321805]
[1734467700626,0.02582324,106670.0,106660.0,0.1713805]
[1734467701636,0.02582324,106670.0,106660.0,0.15690034]
[1734467701827,0.02582324,106670.0,106660.0,0.17139884]
[1734467702034,0.02582324,106670.0,106660.0,0.18046506]
[1734467702936,0.38662324,106670.0,106660.0,0.07044472]
[1734467703524,0.43349824,106670.0,106650.0,0.04585533]
[1734467703729,0.38662324,106660.0,106640.0,0.158315]
[1734467703924,0.43350724,106650.0,106640.0,0.04829466]
[1734467704234,0.42895867,106650.0,106640.0,0.04829466]
[1734467704437,1.23387389,106650.0,106640.0,0.04829466]
[1734467704627,1.23387389,106650.0,106640.0,0.15839912]
[1734467704831,0.42895867,106650.0,106630.0,0.046892]
[1734467705025,0.407689,106640.0,106630.0,0.046892]
[1734467705240,0.43351224,106640.0,106630.0,0.046892]
[1734467705427,0.07271224,106640.0,106630.0,0.046892]
[1734467705628,0.43351224,106640.0,106630.0,0.046892]
[1734467705835,0.43351224,106640.0,106630.0,0.04696224]
[1734467708232,0.43351224,106640.0,106630.0,0.11584621]
[1734467709532,0.43351224,106640.0,106630.0,0.04696224]
[1734467710134,0.43351224,106640.0,106630.0,0.11584621]
[1734467711846,0.38662324,106640.0,106630.0,0.11584621]
[1734467712231,0.02582324,106640.0,106630.0,0.11584621]
[1734467712428,0.00895021,106640.0,106630.0,0.11584621]
[1734467712629,0.36975021,106640.0,106630.0,0.11584621]
[1734467712828,0.41663921,106640.0,106630.0,0.11584621]